lending/lending_fUSD_20250224
["ID","MTS","AMOUNT","RATE_DAILY","PERIOD"]
[354257749,1740370234033,-500.0,0.00016438,2]
[354257750,1740370234043,-500.0,0.00016438,2]
[354257751,1740370234056,-504.03385047,0.00016438,2]
[354257752,1740370234065,-500.0,0.00016438,2]
[354257753,1740370234074,-500.0,0.00016438,2]
[354257754,1740370234083,-768.2,0.00016438,2]
[354257755,1740370234093,-500.0,0.00016438,2]
[354257756,1740370234102,-556.67,0.00016438,2]
[354257757,1740370234112,-500.0,0.00016438,2]
[354257758,1740370234122,-500.0,0.00016438,2]
[354257759,1740370234131,-557.42094878,0.00016438,2]
[354257760,1740370234143,-500.0,0.00016438,2]
[354257761,1740370234154,-781.2,0.00016438,2]
[354257762,1740370234164,-500.0,0.00016438,2]
[354257763,1740370234173,-500.0,0.00016438,2]
[354257764,1740370234182,-992.75,0.00016438,2]
[354257765,1740370234192,-845.58,0.00016438,2]
[354257766,1740370234201,-272.88508862,0.00016438,2]
[354257767,1740370234211,-822.7,0.00016438,2]
[354257768,1740370234222,-519.67,0.00016438,2]
[354257769,1740370234231,-506.17,0.00016438,2]
[354257770,1740370234240,-1117.0,0.00016438,2]
[354257771,1740370234250,-500.0,0.00016438,2]
[354257772,1740370234259,-500.0,0.00016438,2]
[354257773,1740370234268,-611.16,0.00016438,2]
[354257774,1740370234278,-500.0,0.00016438,2]
[354257775,1740370234287,-500.0,0.00016438,2]
[354257776,1740370234296,-500.0,0.00016438,2]
[354257777,1740370234305,-500.0,0.00016438,2]
[354257778,1740370234314,-1226.43,0.00016438,2]
[354257779,1740370234324,-887.69,0.00016438,2]
[354257780,1740370234333,-890.12,0.00016438,2]
[354257781,1740370234342,-500.0,0.00016438,2]
[354257782,1740370234353,-508.68428393,0.00016438,2]
[354257783,1740370234363,-500.0,0.00016438,2]
[354257784,1740370234373,-500.0,0.00016438,2]
[354257785,1740370234383,-690.76,0.00016438,2]
[354257786,1740370234396,-589.26484992,0.00016438,2]
[354257787,1740370234406,-689.31,0.00016438,2]
[354257788,1740370234416,-595.43,0.00016438,2]
[354257789,1740370234426,-500.0,0.00016438,2]
[354257790,1740370234436,-500.0,0.00016438,2]
[354257791,1740370234446,-500.0,0.00016438,2]
[354257792,1740370234456,-500.0,0.00016438,2]
[354257793,1740370234466,-929.89,0.00016438,2]
[354257794,1740370234476,-500.0,0.00016438,2]
[354257795,1740370234485,-500.0,0.00016438,2]
[354257796,1740370234494,-688.58,0.00016438,2]
[354257797,1740370234723,-500.0,0.00016438,2]
[354257798,1740370234732,-500.0,0.00016438,2]
[354257799,1740370234741,-500.0,0.00016438,2]
[354257800,1740370234750,-500.0,0.00016438,2]
[354257801,1740370234760,-518.85,0.00016438,2]
[354257802,1740370234769,-500.0,0.00016438,2]
[354257803,1740370234778,-500.0,0.00016438,2]
[354257804,1740370234787,-500.0,0.00016438,2]
[354257805,1740370234797,-340.66543236,0.00016438,2]
[354257806,1740370234806,-783.77,0.00016438,2]
[354257807,1740370234815,-627.66,0.00016438,2]
[354257808,1740370234823,-500.0,0.00016438,2]
[354257809,1740370234832,-286.8,0.00016438,2]
[354257810,1740370234842,-1124.15,0.00016438,2]
[354257811,1740370234851,-500.0,0.00016438,2]
[354257812,1740370234861,-500.0,0.00016438,2]
[354257813,1740370234869,-500.0,0.00016438,2]
[354257814,1740370234878,-500.0,0.00016438,2]
[354257815,1740370234887,-500.0,0.00016438,2]
[354257816,1740370234896,-502.25325886,0.00016438,2]
[354257817,1740370234905,-500.0,0.00016438,2]
[354257818,1740370234914,-648.07,0.00016438,2]
[354257819,1740370234923,-364.23142153,0.00016438,2]
[354257820,1740370234933,-500.0,0.00016438,2]
[354257821,1740370234942,-500.0,0.00016438,2]
[354257822,1740370234951,-500.0,0.00016438,2]
[354257823,1740370234960,-500.0,0.00016438,2]
[354257824,1740370234969,-742.83,0.00016438,2]
[354257825,1740370234978,-500.0,0.00016438,2]
[354257826,1740370234987,-500.0,0.00016438,2]
[354257827,1740370234996,-500.0,0.00016438,2]
[354257828,1740370235005,-544.47,0.00016438,2]
[354257829,1740370235014,-500.0,0.00016438,2]
[354257830,1740370235023,-500.0,0.00016438,2]
[354257831,1740370235032,-538.11,0.00016438,2]
[354257832,1740370235041,-501.9764245,0.00016438,2]
[354257833,1740370235050,-606.9,0.00016438,2]
[354257834,1740370235061,-500.0,0.00016438,2]
[354257835,1740370235070,-761.19,0.00016438,2]
[354257836,1740370235079,-500.0,0.00016438,2]
[354257837,1740370235088,-500.0,0.00016438,2]
[354257838,1740370235098,-942.27,0.00016438,2]
[354257839,1740370235107,-500.0,0.00016438,2]
[354257840,1740370235116,-1119.02,0.00016438,2]
[354257841,1740370235125,-500.0,0.00016438,2]
[354257842,1740370235136,-719.34,0.00016438,2]
[354257843,1740370235147,-500.0,0.00016438,2]
[354257844,1740370235156,-501.54723574,0.00016438,2]
[354257845,1740370235166,-604.42,0.00016438,2]
[354257846,1740370235175,-500.0,0.00016438,2]
[354257847,1740370235184,-500.0,0.00016438,2]
[354257848,1740370235193,-500.0,0.00016438,2]
[354257849,1740370235202,-500.0,0.00016438,2]
[354257850,1740370235211,-501.55766709,0.00016438,2]
[354257851,1740370235220,-500.0,0.00016438,2]
[354257852,1740370235230,-500.0,0.00016438,2]
[354257853,1740370235239,-502.7481538,0.00016438,2]
[354257854,1740370235248,-500.0,0.00016438,2]
[354257855,1740370235257,-500.0,0.00016438,2]
[354257856,1740370235267,-500.0,0.00016438,2]
[354257857,1740370235276,-531.87,0.00016438,2]
[354257858,1740370235285,-500.0,0.00016438,2]
[354257859,1740370235294,-985.74,0.00016438,2]
[354257860,1740370235303,-500.0,0.00016438,2]
[354257861,1740370235312,-500.0,0.00016438,2]
[354257862,1740370235322,-500.0,0.00016438,2]
[354257863,1740370235331,-500.0,0.00016438,2]
[354257864,1740370235340,-955.59,0.00016438,2]
[354257865,1740370235350,-500.0,0.00016438,2]
[354257866,1740370235360,-506.69,0.00016438,2]
[354257867,1740370235369,-500.0,0.00016438,2]
[354257868,1740370235379,-1299.46,0.00016438,2]
[354257869,1740370235387,-500.0,0.00016438,2]
[354257870,1740370235397,-500.0,0.00016438,2]
[354257871,1740370235407,-3895.08,0.00016438,2]
[354257872,1740370235416,-500.0,0.00016438,2]
[354257873,1740370235425,-500.0,0.00016438,2]
[354257874,1740370235435,-500.0,0.00016438,2]
[354257875,1740370235444,-500.0,0.00016438,2]
[354257876,1740370235453,-649.36199014,0.00016438,2]
[354257877,1740370235462,-529.88,0.00016438,2]
[354257878,1740370235472,-500.0,0.00016438,2]
[354257879,1740370235481,-603.32,0.00016438,2]
[354257880,1740370235490,-2279.4,0.00016438,2]
[354257881,1740370235499,-500.0,0.00016438,2]
[354257882,1740370235509,-500.0,0.00016438,2]
[354257883,1740370235519,-1087.58,0.00016438,2]
[354257884,1740370235528,-1355.43,0.00016438,2]
[354257885,1740370235538,-500.0,0.00016438,2]
[354257886,1740370235547,-1419.3,0.00016438,2]
[354257887,1740370235556,-1326.58,0.00016438,2]
[354257888,1740370235565,-990.6,0.00016438,2]
[354257889,1740370235576,-518.6,0.00016438,2]
[354257890,1740370235585,-1406.75,0.00016438,2]
[354257891,1740370235594,-500.0,0.00016438,2]
[354257892,1740370235603,-500.0,0.00016438,2]
[354257893,1740370235611,-500.0,0.00016438,2]
[354257894,1740370235621,-1927.97,0.00016438,2]
[354257895,1740370235630,-1147.32,0.00016438,2]
[354257896,1740370235639,-1418.58,0.00016438,2]
[354257897,1740370235648,-500.0,0.00016438,2]
[354257898,1740370235657,-881.04,0.00016438,2]
[354257899,1740370235666,-500.0,0.00016438,2]
[354257900,1740370235675,-500.0,0.00016438,2]
[354257901,1740370235684,-1955.15,0.00016438,2]
[354257902,1740370235693,-500.0,0.00016438,2]
[354257903,1740370235702,-2363.12,0.00016438,2]
[354257904,1740370235711,-2242.46,0.00016438,2]
[354257905,1740370235719,-500.0,0.00016438,2]
[354257906,1740370235728,-500.0,0.00016438,2]
[354257907,1740370235737,-500.0,0.00016438,2]
[354257908,1740370235746,-500.0,0.00016438,2]
[354257909,1740370235755,-1062.87,0.00016438,2]
[354257910,1740370235764,-618.22,0.00016438,2]
[354257911,1740370235773,-500.0,0.00016438,2]
[354257912,1740370235782,-2156.86,0.00016438,2]
[354257913,1740370235790,-1442.62,0.00016438,2]
[354257914,1740370235799,-2318.74,0.00016438,2]
[354257915,1740370235808,-500.0,0.00016438,2]
[354257916,1740370235817,-500.0,0.00016438,2]
[354257917,1740370235826,-834.42,0.00016438,2]
[354257918,1740370235835,-586.92,0.00016438,2]
[354257919,1740370235844,-2002.34,0.00016438,2]
[354257920,1740370235853,-693.2,0.00016438,2]
[354257921,1740370235862,-1463.93,0.00016438,2]
[354257922,1740370235871,-1507.75,0.00016438,2]
[354257923,1740370235880,-1508.25,0.00016438,2]
[354257924,1740370235889,-590.46,0.00016438,2]
[354257925,1740370235899,-1055.17,0.00016438,2]
[354257926,1740370235908,-731.62,0.00016438,2]
[354257927,1740370235917,-1951.74,0.00016438,2]
[354257928,1740370235926,-1780.85,0.00016438,2]
[354257929,1740370235935,-500.0,0.00016438,2]
[354257930,1740370235943,-500.0,0.00016438,2]
[354257931,1740370235953,-11267.85,0.00016438,2]
[354257932,1740370235961,-582.35,0.00016438,2]
[354257933,1740370235971,-822.47,0.00016438,2]
[354257934,1740370235980,-500.0,0.00016438,2]
[354257935,1740370235989,-773.02,0.00016438,2]
[354257936,1740370235998,-2054.61,0.00016438,2]
[354257937,1740370236007,-1628.62,0.00016438,2]
[354257938,1740370236016,-599.87,0.00016438,2]
[354257939,1740370236025,-3117.91,0.00016438,2]
[354257940,1740370236033,-500.0,0.00016438,2]
[354257941,1740370236042,-4818.73,0.00016438,2]
[354257942,1740370236051,-655.46,0.00016438,2]
[354257943,1740370236062,-500.0,0.00016438,2]
[354257944,1740370236072,-5552.05,0.00016438,2]
[354257945,1740370236081,-500.0,0.00016438,2]
[354257946,1740370236090,-1407.53,0.00016438,2]
[354257947,1740370236100,-1303.65,0.00016438,2]
[354257948,1740370236110,-1935.81,0.00016438,2]
[354257949,1740370236118,-2523.47,0.00016438,2]
[354257950,1740370236127,-1791.53,0.00016438,2]
[354257951,1740370236137,-500.0,0.00016438,2]
[354257952,1740370236147,-1194.26,0.00016438,2]
[354257953,1740370236156,-3040.22,0.00016438,2]
[354257954,1740370236165,-555.36,0.00016438,2]
[354257955,1740370236174,-500.0,0.00016438,2]
[354257956,1740370236183,-2447.95,0.00016438,2]
[354257957,1740370236192,-778.73,0.00016438,2]
[354257958,1740370236202,-2805.33,0.00016438,2]
[354257959,1740370236211,-1963.82,0.00016438,2]
[354257960,1740370236219,-1830.49,0.00016438,2]
[354257961,1740370236228,-500.0,0.00016438,2]
[354257962,1740370236238,-500.0,0.00016438,2]
[354257963,1740370236247,-1465.42,0.00016438,2]
[354257964,1740370236255,-3178.28,0.00016438,2]
[354257965,1740370236264,-500.0,0.00016438,2]
[354257966,1740370236274,-3050.1,0.00016438,2]
[354257967,1740370236283,-1928.5,0.00016438,2]
[354257968,1740370236292,-1941.07,0.00016438,2]
[354257969,1740370236301,-500.0,0.00016438,2]
[354257970,1740370236310,-748.66,0.00016438,2]
[354257971,1740370236318,-1478.69,0.00016438,2]
[354257972,1740370236325,-2173.14,0.00016438,2]
[354257973,1740370236334,-1220.36,0.00016438,2]
[354257974,1740370236343,-3736.47,0.00016438,2]
[354257975,1740370236353,-500.0,0.00016438,2]
[354257976,1740370236362,-1666.17,0.00016438,2]
[354257977,1740370236371,-2977.97,0.00016438,2]
[354257978,1740370236381,-1017.67,0.00016438,2]
[354257979,1740370236391,-6338.02,0.00016438,2]
[354257980,1740370236400,-1640.63,0.00016438,2]
[354257981,1740370236410,-2867.15,0.00016438,2]
[354257982,1740370236419,-500.0,0.00016438,2]
[354257983,1740370236428,-841.89,0.00016438,2]
[354257984,1740370236437,-500.0,0.00016438,2]
[354257985,1740370236447,-2143.08,0.00016438,2]
[354257986,1740370236456,-500.0,0.00016438,2]
[354257987,1740370236465,-2766.52,0.00016438,2]
[354257988,1740370236475,-931.52,0.00016438,2]
[354257989,1740370236484,-500.0,0.00016438,2]
[354257990,1740370236493,-500.0,0.00016438,2]
[354257991,1740370236502,-549.15,0.00016438,2]
[354257992,1740370236511,-500.0,0.00016438,2]
[354257993,1740370236519,-2546.08,0.00016438,2]
[354257994,1740370236528,-500.0,0.00016438,2]
[354257995,1740370236537,-1331.74,0.00016438,2]
[354257996,1740370236547,-1142.48,0.00016438,2]
[354257997,1740370236556,-1700.65,0.00016438,2]
[354257998,1740370236565,-500.0,0.00016438,2]
[354257999,1740370236574,-500.0,0.00016438,2]
[354258000,1740370236583,-1357.58,0.00016438,2]
[354258001,1740370236592,-3135.47,0.00016438,2]
[354258002,1740370236601,-500.0,0.00016438,2]
[354258003,1740370236610,-2422.92,0.00016438,2]
[354258004,1740370236619,-500.0,0.00016438,2]
[354258005,1740370236628,-1200.83,0.00016438,2]
[354258006,1740370236637,-1256.88,0.00016438,2]
[354258007,1740370236647,-985.51,0.00016438,2]
[354258008,1740370236657,-500.0,0.00016438,2]
[354258009,1740370236666,-2703.34,0.00016438,2]
[354258010,1740370236675,-1243.49,0.00016438,2]
[354258011,1740370236683,-500.0,0.00016438,2]
[354258012,1740370236692,-2863.31,0.00016438,2]
[354258013,1740370236701,-2741.9,0.00016438,2]
[354258014,1740370236710,-3475.77,0.00016438,2]
[354258015,1740370236719,-807.12,0.00016438,2]
[354258016,1740370236728,-2094.5,0.00016438,2]
[354258017,1740370236738,-1429.41,0.00016438,2]
[354258018,1740370236747,-656.42,0.00016438,2]
[354258019,1740370236755,-500.0,0.00016438,2]
[354258020,1740370236765,-1109.03,0.00016438,2]
[354258021,1740370236774,-3155.01,0.00016438,2]
[354258022,1740370236783,-1836.26,0.00016438,2]
[354258023,1740370236792,-2861.82,0.00016438,2]
[354258024,1740370236801,-500.0,0.00016438,2]
[354258025,1740370236810,-1059.77,0.00016438,2]
[354258026,1740370236819,-1222.45,0.00016438,2]
[354258027,1740370236829,-1881.25,0.00016438,2]
[354258028,1740370236838,-2516.19,0.00016438,2]
[354258029,1740370236847,-1026.41,0.00016438,2]
[354258030,1740370236855,-500.0,0.00016438,2]
[354258031,1740370236864,-1040.13,0.00016438,2]
[354258032,1740370236874,-1687.26,0.00016438,2]
[354258033,1740370236884,-500.0,0.00016438,2]
[354258034,1740370236893,-990.37,0.00016438,2]
[354258035,1740370236902,-1952.17,0.00016438,2]
[354258036,1740370236911,-3199.22,0.00016438,2]
[354258037,1740370236920,-1386.4,0.00016438,2]
[354258038,1740370236930,-151.50763843,0.00016438,2]
[354258039,1740370236939,-500.0,0.00016438,2]
[354258040,1740370236948,-500.0,0.00016438,2]
[354258041,1740370236957,-1126.95,0.00016438,2]
[354258042,1740370236966,-2480.34,0.00016438,2]
[354258043,1740370236975,-2631.9,0.00016438,2]
[354258044,1740370236983,-4039.48,0.00016438,2]
[354258045,1740370236992,-572.26,0.00016438,2]
[354258046,1740370237001,-3534.61,0.00016438,2]
[354258047,1740370237010,-500.0,0.00016438,2]
[354258048,1740370237019,-3523.63,0.00016438,2]
[354258049,1740370237028,-1787.16,0.00016438,2]
[354258050,1740370237037,-1888.6,0.00016438,2]
[354258051,1740370237046,-9640.15,0.00016438,2]
[354258052,1740370237059,-500.0,0.00016438,2]
[354258053,1740370237067,-2409.95,0.00016438,2]
[354258054,1740370237076,-2352.02,0.00016438,2]
[354258055,1740370237085,-1485.16,0.00016438,2]
[354258056,1740370237094,-500.0,0.00016438,2]
[354258057,1740370237104,-811.15,0.00016438,2]
[354258058,1740370237112,-500.0,0.00016438,2]
[354258059,1740370237121,-583.37,0.00016438,2]
[354258060,1740370237130,-2357.84,0.00016438,2]
[354258061,1740370237141,-500.0,0.00016438,2]
[354258062,1740370237150,-500.0,0.00016438,2]
[354258063,1740370237158,-739.0,0.00016438,2]
[354258064,1740370237168,-709.38,0.00016438,2]
[354258065,1740370237177,-4243.19,0.00016438,2]
[354258066,1740370237185,-1367.15,0.00016438,2]
[354258067,1740370237194,-3442.95,0.00016438,2]
[354258068,1740370237203,-2307.0,0.00016438,2]
[354258069,1740370237215,-853.06,0.00016438,2]
[354258070,1740370237224,-500.0,0.00016438,2]
[354258071,1740370237233,-495.92116928,0.00016438,2]
[354258072,1740370237241,-69594.62208027,0.00016438,2]
[354258073,1740370237251,-324.37792965,0.00016438,2]
[354258074,1740370237260,-150.83,0.00016438,2]
[354258075,1740370237269,-199.0,0.00016438,2]
[354258076,1740370237278,-391.79564931,0.00016442,2]
[354258077,1740370237287,-391.79564931,0.00016459,2]
[354258078,1740370237295,-391.79564931,0.00016477,2]
[354258079,1740370237304,-239.87115715,0.00016484,2]
[354258080,1740370237314,-391.79564931,0.00016494,2]
[354258081,1740370237323,-500.0,0.000165,6]
[354258082,1740370237332,-269.31005076,0.00016502,2]
[354258083,1740370237342,-391.79564931,0.00016511,2]
[354258084,1740370237351,-500.0,0.00016519,2]
[354258085,1740370237361,-708.07,0.00016519,2]
[354258086,1740370237370,-708.07,0.00016519,2]
[354258087,1740370237380,-1000.0,0.00016519,2]
[354258088,1740370237389,-1000.0,0.00016519,2]
[354258089,1740370237400,-1007.87996862,0.00016519,2]
[354258090,1740370237409,-500.0,0.00016519,2]
[354258091,1740370237419,-538.99395,0.0001652,2]
[354258092,1740370237429,-586.522083,0.0001652,2]
[354258093,1740370237438,-654.56,0.0001652,2]
[354258094,1740370237447,-561.51,0.0001652,2]
[354258095,1740370237457,-500.0,0.0001652,2]
[354258096,1740370237467,-500.0,0.0001652,2]
[354258097,1740370237476,-500.0,0.0001652,2]
[354258098,1740370237486,-500.0,0.0001652,2]
[354258099,1740370237495,-632.37,0.0001652,2]
[354258100,1740370237505,-500.0,0.0001652,2]
[354258101,1740370237515,-500.0,0.0001652,2]
[354258102,1740370237525,-500.0,0.0001652,2]
[354258103,1740370237534,-500.0,0.0001652,2]
[354258104,1740370237544,-500.0,0.0001652,2]
[354258105,1740370237553,-500.0,0.0001652,2]
[354258106,1740370237563,-536.73,0.0001652,2]
[354258107,1740370237572,-500.0,0.0001652,2]
[354258108,1740370237582,-500.0,0.0001652,2]
[354258109,1740370237591,-500.0,0.0001652,2]
[354258110,1740370237601,-565.79,0.0001652,2]
[354258111,1740370237611,-151.31020531,0.0001652,2]
[354258112,1740370237620,-500.0,0.0001652,2]
[354258113,1740370237630,-585.43,0.0001652,2]
[354258114,1740370237640,-373.2105072,0.0001652,2]
[354258115,1740370237651,-1958.12,0.0001652,2]
[354258116,1740370237660,-168.10883249,0.0001652,2]
[354258117,1740370237670,-630.39717537,0.0001652,2]
[354258118,1740370237679,-674.94,0.0001652,2]
[354258119,1740370237688,-500.0,0.0001652,2]
[354258120,1740370237697,-500.0,0.0001652,2]
[354258121,1740370237707,-500.0,0.0001652,2]
[354258122,1740370237716,-745.66,0.0001652,2]
[354258123,1740370237726,-500.0,0.0001652,2]
[354258124,1740370237735,-500.0,0.0001652,2]
[354258125,1740370237745,-1348.94,0.0001652,2]
[354258126,1740370237754,-699.72,0.0001652,2]
[354258127,1740370237763,-1547.19,0.0001652,2]
[354258128,1740370237773,-500.0,0.0001652,2]
[354258129,1740370237782,-1904.22,0.0001652,2]
[354258130,1740370237791,-526.35,0.0001652,2]
[354258131,1740370237801,-500.0,0.0001652,2]
[354258133,1740370237811,-1002.13,0.0001652,2]
[354258134,1740370237820,-500.0,0.0001652,2]
[354258135,1740370237829,-1134.15,0.0001652,2]
[354258136,1740370237838,-500.0,0.0001652,2]
[354258137,1740370237848,-500.0,0.0001652,2]
[354258139,1740370237857,-571.09,0.0001652,2]
[354258140,1740370237866,-500.0,0.0001652,2]
[354258141,1740370237876,-553.86,0.0001652,2]
[354258142,1740370237885,-1052.61,0.0001652,2]
[354258143,1740370237897,-850.74,0.0001652,2]
[354258144,1740370237908,-1131.97,0.0001652,2]
[354258146,1740370237918,-500.0,0.0001652,2]
[354258148,1740370237927,-899.17,0.0001652,2]
[354258149,1740370237936,-500.0,0.0001652,2]
[354258151,1740370237945,-787.33,0.0001652,2]
[354258153,1740370237953,-500.0,0.0001652,2]
[354258154,1740370237963,-500.0,0.0001652,2]
[354258156,1740370237972,-1272.39,0.0001652,2]
[354258157,1740370237981,-500.0,0.0001652,2]
[354258158,1740370237990,-891.59,0.0001652,2]
[354258159,1740370237999,-769.41,0.0001652,2]
[354258160,1740370238008,-500.0,0.0001652,2]
[354258161,1740370238016,-746.3,0.0001652,2]
[354258162,1740370238026,-512.65,0.0001652,2]
[354258163,1740370238035,-1139.12,0.0001652,2]
[354258164,1740370238045,-629.92,0.0001652,2]
[354258165,1740370238054,-1166.53,0.0001652,2]
[354258166,1740370238067,-500.0,0.0001652,2]
[354258167,1740370238076,-500.0,0.0001652,2]
[354258168,1740370238085,-500.0,0.0001652,2]
[354258169,1740370238094,-500.0,0.0001652,2]
[354258170,1740370238105,-654.42,0.0001652,2]
[354258171,1740370238114,-500.0,0.0001652,2]
[354258172,1740370238123,-620.82,0.0001652,2]
[354258173,1740370238133,-500.0,0.0001652,2]
[354258174,1740370238144,-682.77,0.0001652,2]
[354258175,1740370238153,-589.28,0.0001652,2]
[354258176,1740370238162,-500.0,0.0001652,2]
[354258177,1740370238171,-677.74,0.0001652,2]
[354258178,1740370238180,-500.0,0.0001652,2]
[354258179,1740370238189,-500.0,0.0001652,2]
[354258180,1740370238199,-500.0,0.0001652,2]
[354258181,1740370238207,-500.0,0.0001652,2]
[354258182,1740370238216,-500.0,0.0001652,2]
[354258183,1740370238225,-500.0,0.0001652,2]
[354258184,1740370238235,-500.0,0.0001652,2]
[354258185,1740370238243,-515.59,0.0001652,2]
[354258186,1740370238252,-500.0,0.0001652,2]
[354258187,1740370238261,-500.0,0.0001652,2]
[354258188,1740370238270,-500.0,0.0001652,2]
[354258189,1740370238279,-973.07,0.0001652,2]
[354258190,1740370238288,-500.0,0.0001652,2]
[354258191,1740370238297,-500.0,0.0001652,2]
[354258192,1740370238307,-531.07,0.0001652,2]
[354258193,1740370238316,-614.59,0.0001652,2]
[354258194,1740370238325,-673.96,0.0001652,2]
[354258195,1740370238334,-500.0,0.0001652,2]
[354258196,1740370238343,-500.0,0.0001652,2]
[354258197,1740370238352,-545.54,0.0001652,2]
[354258198,1740370238362,-500.0,0.0001652,2]
[354258199,1740370238371,-500.0,0.0001652,2]
[354258200,1740370238380,-500.0,0.0001652,2]
[354258201,1740370238389,-546.89,0.0001652,2]
[354258202,1740370238400,-500.0,0.0001652,2]
[354258203,1740370238410,-583.18,0.0001652,2]
[354258204,1740370238419,-500.0,0.0001652,2]
[354258205,1740370238428,-882.41,0.0001652,2]
[354258206,1740370238437,-500.0,0.0001652,2]
[354258208,1740370238447,-502.84,0.0001652,2]
[354258209,1740370238456,-576.49,0.0001652,2]
[354258210,1740370238465,-500.0,0.0001652,2]
[354258211,1740370238474,-500.0,0.0001652,2]
[354258212,1740370238483,-500.0,0.0001652,2]
[354258213,1740370238493,-500.0,0.0001652,2]
[354258214,1740370238503,-500.0,0.0001652,2]
[354258215,1740370238513,-768.2,0.0001652,2]
[354258216,1740370238523,-500.0,0.0001652,2]
[354258217,1740370238532,-556.67,0.0001652,2]
[354258218,1740370238734,-500.0,0.0001652,2]
[354258219,1740370238743,-500.0,0.0001652,2]
[354258220,1740370238753,-500.0,0.0001652,2]
[354258221,1740370238763,-781.2,0.0001652,2]
[354258222,1740370238773,-500.0,0.0001652,2]
[354258223,1740370238782,-992.75,0.0001652,2]
[354258224,1740370238791,-845.58,0.0001652,2]
[354258225,1740370238801,-822.7,0.0001652,2]
[354258226,1740370238810,-519.67,0.0001652,2]
[354258227,1740370238819,-506.17,0.0001652,2]
[354258228,1740370238829,-1117.0,0.0001652,2]
[354258229,1740370238838,-500.0,0.0001652,2]
[354258230,1740370238847,-611.16,0.0001652,2]
[354258231,1740370238856,-500.0,0.0001652,2]
[354258232,1740370238866,-500.0,0.0001652,2]
[354258233,1740370238875,-500.0,0.0001652,2]
[354258234,1740370238885,-500.0,0.0001652,2]
[354258235,1740370238894,-1226.43,0.0001652,2]
[354258236,1740370238903,-887.69,0.0001652,2]
[354258237,1740370238912,-890.12,0.0001652,2]
[354258238,1740370238922,-500.0,0.0001652,2]
[354258239,1740370238931,-500.0,0.0001652,2]
[354258240,1740370238940,-500.0,0.0001652,2]
[354258241,1740370238949,-690.76,0.0001652,2]
[354258242,1740370238958,-689.31,0.0001652,2]
[354258243,1740370238967,-595.43,0.0001652,2]
[354258244,1740370238976,-500.0,0.0001652,2]
[354258245,1740370238986,-500.0,0.0001652,2]
[354258246,1740370238995,-500.0,0.0001652,2]
[354258247,1740370239004,-500.0,0.0001652,2]
[354258248,1740370239013,-929.89,0.0001652,2]
[354258249,1740370239022,-500.0,0.0001652,2]
[354258250,1740370239031,-500.0,0.0001652,2]
[354258251,1740370239041,-688.58,0.0001652,2]
[354258252,1740370239050,-500.0,0.0001652,2]
[354258253,1740370239062,-500.0,0.0001652,2]
[354258254,1740370239071,-500.0,0.0001652,2]
[354258255,1740370239080,-518.85,0.0001652,2]
[354258256,1740370239090,-500.0,0.0001652,2]